Workbook

Sheet Calc_1
S1: AD | T1: =M36/2 -> 15 | V1: AC | W1: =COS(T3)*T6 -> 15.73461702 | Y1: AF | Z1: =SQRT(W3^2+W5^2) -> 16.47981144
S2: BD | T2: =M35/2 -> 1 | V2: BC | W2: =SIN(T3)*T6 -> 2.902038471 | Y2: AH | Z2: =SQRT(W4^2+W6^2) -> 16.07973705
S3: w1 | T3: =RADIANS((180-M39)/2) -> 0.1823869068 | V3: x_pkt_F | W3: =W1-T5 -> 13.53461702 | Y3: JF | Z3: =Z1-T9 -> 1.479811444
S4: GH | T4: =M33/2 -> 5.5 | V4: x_pkt_H | W4: =W1-T4 -> 10.23461702 | Y4: HI | Z4: =Z2-T9 -> 1.079737055
S5: EF | T5: =M34/2 -> 2.2 | V5: CE | W5: =T7+W2 -> 9.402038471
S6: AB | T6: =T1+T2 -> 16 | V6: CG | W6: =T8+W2 -> 12.40203847
S7: BE | T7: =M38 -> 6.5
S8: BG | T8: =M37 -> 9.5
S9: AI | T9: =M36/2 -> 15
S10: AJ | T10: =M36/2 -> 15
M31: input | N31: output
L33: D1 | M33: 11
L34: D2 | M34: 4.4
L35: D3 | M35: 2
L36: D4 | M36: 30
L37: L1 | M37: 9.5
L38: L2 | M38: 6.5
L39: a1 | M39: 159.1
L41: Clearance c1 | N41: =Z4 -> 1.079737055
L42: Clearance c2 | N42: =Z3 -> 1.479811444
